[Event "*** SCC Grand Prix: Titled Tuesday Blitz"]
[Site "Chess.com"]
[Date "2020.07.21"]
[Round "9"]
[White "Bastiandash"]
[Black "bratkoo"]
[Result "0-1"]
[WhiteElo "2361"]
[BlackElo "2477"]
[TimeControl "180+1"]
[EndTime "11:48:27 PDT"]
[Termination "bratkoo won by resignation"]

1. d4 {[%clk 0:03:00.9]} 1... e6 {[%clk 0:03:00]} 2. Nf3 {[%clk 0:03:00.9]} 2...
d5 {[%clk 0:02:56]} 3. Bg5 {[%clk 0:02:57.6]} 3... Nf6 {[%clk 0:02:56.4]} 4.
Nbd2 {[%clk 0:02:56.5]} 4... h6 {[%clk 0:02:55.9]} 5. Bh4 {[%clk 0:02:56.4]}
5... Nbd7 {[%clk 0:02:56.1]} 6. e3 {[%clk 0:02:56.2]} 6... c5 {[%clk 0:02:55]}
7. c3 {[%clk 0:02:56.3]} 7... a6 {[%clk 0:02:55.5]} 8. Bd3 {[%clk 0:02:55.5]}
8... Be7 {[%clk 0:02:55.8]} 9. O-O {[%clk 0:02:55.3]} 9... O-O {[%clk 0:02:56]}
10. Ne5 {[%clk 0:02:55.7]} 10... Nxe5 {[%clk 0:02:56]} 11. dxe5 {[%clk
0:02:56.6]} 11... Nd7 {[%clk 0:02:56.6]} 12. Bxe7 {[%clk 0:02:57.5]} 12... Qxe7
{[%clk 0:02:56.8]} 13. f4 {[%clk 0:02:52.4]} 13... f6 {[%clk 0:02:53.9]} 14.
exf6 {[%clk 0:02:50.5]} 14... Rxf6 {[%clk 0:02:52.3]} 15. e4 {[%clk 0:02:48.2]}
15... b5 {[%clk 0:02:50.5]} 16. Qe2 {[%clk 0:02:45.8]} 16... c4 {[%clk
0:02:44.6]} 17. Bc2 {[%clk 0:02:45.6]} 17... Bb7 {[%clk 0:02:44.5]} 18. Rae1
{[%clk 0:02:32]} 18... Raf8 {[%clk 0:02:42.8]} 19. g3 {[%clk 0:02:24.6]} 19...
Qc5+ {[%clk 0:02:40.7]} 20. Qe3 {[%clk 0:02:22.3]} 20... Qxe3+ {[%clk
0:02:04.3]} 21. Rxe3 {[%clk 0:02:23.2]} 21... Nc5 {[%clk 0:02:03.1]} 22. e5
{[%clk 0:02:16.3]} 22... R6f7 {[%clk 0:02:02.8]} 23. Nf3 {[%clk 0:02:16]} 23...
Ne4 {[%clk 0:01:48.3]} 24. Bxe4 {[%clk 0:01:58.9]} 24... dxe4 {[%clk 0:01:48.4]}
25. Nd2 {[%clk 0:01:21.7]} 25... g5 {[%clk 0:01:38.8]} 26. Nxe4 {[%clk
0:01:09.1]} 26... gxf4 {[%clk 0:01:39.2]} 27. gxf4 {[%clk 0:00:58]} 27... Rg7+
{[%clk 0:01:39.1]} 28. Ng3 {[%clk 0:00:42.8]} 28... Rg4 {[%clk 0:01:37.3]} 29.
h3 {[%clk 0:00:25.3]} 29... Rgxf4 {[%clk 0:01:35.9]} 30. Rxf4 {[%clk 0:00:24.5]}
30... Rxf4 {[%clk 0:01:36]} 31. Nh5 {[%clk 0:00:24.2]} 31... Rf5 {[%clk
0:01:33]} 32. Nf6+ {[%clk 0:00:23.3]} 32... Kf7 {[%clk 0:01:31.8]} 33. Ng4
{[%clk 0:00:21.7]} 33... Rg5 {[%clk 0:01:28.8]} 34. Kf1 {[%clk 0:00:14.4]} 34...
h5 {[%clk 0:01:27.4]} 35. Nf2 {[%clk 0:00:12.9]} 35... Kg6 {[%clk 0:01:24.1]}
36. h4 {[%clk 0:00:12]} 36... Rf5 {[%clk 0:01:20.2]} 37. Ke2 {[%clk 0:00:12.2]}
37... Rf4 {[%clk 0:01:19.2]} 38. Nh3 {[%clk 0:00:09.4]} 38... Rxh4 {[%clk
0:01:18.6]} 39. Rg3+ {[%clk 0:00:08.8]} 39... Kf7 {[%clk 0:01:16.4]} 40. Ng5+
{[%clk 0:00:06.5]} 40... Ke7 {[%clk 0:01:13.9]} 41. Ke3 {[%clk 0:00:06.7]} 41...
Bd5 {[%clk 0:01:10.5]} 42. Nh3 {[%clk 0:00:03.5]} 42... Re4+ {[%clk 0:01:07.4]}
43. Kd2 {[%clk 0:00:03.3]} 43... Rxe5 {[%clk 0:01:07.6]} 44. Nf4 {[%clk
0:00:03.9]} 44... Kd6 {[%clk 0:01:05.7]} 45. Ng6 {[%clk 0:00:01.8]} 45... Re4
{[%clk 0:01:03.6]} 46. Rg5 {[%clk 0:00:02.1]} 46... h4 {[%clk 0:01:00.2]} 47.
Rh5 {[%clk 0:00:02]} 47... Rg4 {[%clk 0:01:00.4]} 48. Nxh4 {[%clk 0:00:02]}
48... Rg3 {[%clk 0:00:57.3]} 49. Nf5+ {[%clk 0:00:02.3]} 49... exf5 {[%clk
0:00:57]} 50. Rh6+ {[%clk 0:00:01.5]} 50... Ke5 {[%clk 0:00:56.8]} 0-1

[Event "*** SCC Grand Prix: Titled Tuesday Blitz"]
[Site "Chess.com"]
[Date "2020.07.21"]
[Round "9"]
[White "anon569"]
[Black "Mikhail_Golubev"]
[Result "1-0"]
[WhiteElo "2346"]
[BlackElo "2598"]
[TimeControl "180+1"]
[EndTime "11:48:28 PDT"]
[Termination "anon569 won on time"]

1. e4 {[%clk 0:02:51.1]} 1... c5 {[%clk 0:02:57.4]} 2. Nf3 {[%clk 0:02:49.4]}
2... d6 {[%clk 0:02:57.2]} 3. d4 {[%clk 0:02:48.5]} 3... Nf6 {[%clk 0:02:57.2]}
4. Nc3 {[%clk 0:02:47.2]} 4... cxd4 {[%clk 0:02:57.1]} 5. Nxd4 {[%clk
0:02:46.6]} 5... Nc6 {[%clk 0:02:56.8]} 6. Bg5 {[%clk 0:02:44.8]} 6... e6 {[%clk
0:02:56.3]} 7. Qd2 {[%clk 0:02:42.9]} 7... a6 {[%clk 0:02:56.3]} 8. O-O-O {[%clk
0:02:41]} 8... Bd7 {[%clk 0:02:56.5]} 9. f4 {[%clk 0:02:39.7]} 9... Be7 {[%clk
0:02:56.6]} 10. Nf3 {[%clk 0:02:38.6]} 10... b5 {[%clk 0:02:56.3]} 11. e5 {[%clk
0:02:37.9]} 11... b4 {[%clk 0:02:54.6]} 12. exf6 {[%clk 0:02:37.1]} 12... bxc3
{[%clk 0:02:54.6]} 13. Qxc3 {[%clk 0:02:35.8]} 13... gxf6 {[%clk 0:02:54.6]} 14.
Kb1 {[%clk 0:02:33.1]} 14... Rg8 {[%clk 0:02:48.5]} 15. Bh4 {[%clk 0:02:31.8]}
15... Rb8 {[%clk 0:02:06.5]} 16. Bxa6 {[%clk 0:02:12.1]} 16... d5 {[%clk
0:01:20.6]} 17. a3 {[%clk 0:01:42.3]} 17... Qb6 {[%clk 0:00:58]} 18. Be2 {[%clk
0:01:22]} 18... Rxg2 {[%clk 0:00:52.6]} 19. Rhe1 {[%clk 0:01:14.2]} 19... f5
{[%clk 0:00:38]} 20. Bxe7 {[%clk 0:00:38.6]} 20... Nxe7 {[%clk 0:00:37]} 21. Ne5
{[%clk 0:00:38.7]} 21... Bb5 {[%clk 0:00:33.1]} 22. Bf3 {[%clk 0:00:35.1]} 22...
Rg8 {[%clk 0:00:30.4]} 23. Bh5 {[%clk 0:00:23.4]} 23... Ng6 {[%clk 0:00:27.2]}
24. Rxd5 {[%clk 0:00:20.3]} 24... Nxe5 {[%clk 0:00:19.5]} 25. Rdxe5 {[%clk
0:00:19.7]} 25... Rg1 {[%clk 0:00:14.1]} 26. Rxe6+ {[%clk 0:00:16.9]} 26... Qxe6
{[%clk 0:00:04.3]} 27. Rxg1 {[%clk 0:00:16.6]} 27... Rc8 {[%clk 0:00:01.7]} 28.
Qh8+ {[%clk 0:00:10.9]} 28... Ke7 {[%clk 0:00:01.3]} 29. Qd4 {[%clk 0:00:10.7]}
1-0

[Event "*** SCC Grand Prix: Titled Tuesday Blitz"]
[Site "Chess.com"]
[Date "2020.07.21"]
[Round "9"]
[White "isainz"]
[Black "jonychess03"]
[Result "0-1"]
[WhiteElo "2138"]
[BlackElo "2314"]
[TimeControl "180+1"]
[EndTime "11:48:30 PDT"]
[Termination "jonychess03 won on time"]

1. e4 {[%clk 0:03:00.9]} 1... c6 {[%clk 0:02:58.9]} 2. d4 {[%clk 0:03:00.3]}
2... d5 {[%clk 0:02:59.1]} 3. e5 {[%clk 0:03:00.7]} 3... Bf5 {[%clk 0:02:58.1]}
4. Nf3 {[%clk 0:03:01.1]} 4... e6 {[%clk 0:02:57.2]} 5. Be2 {[%clk 0:02:59.7]}
5... c5 {[%clk 0:02:57.2]} 6. Be3 {[%clk 0:02:56]} 6... Qb6 {[%clk 0:02:53.6]}
7. Nc3 {[%clk 0:02:43.6]} 7... Nc6 {[%clk 0:02:46.7]} 8. O-O {[%clk 0:02:40.5]}
8... a6 {[%clk 0:02:37.7]} 9. Na4 {[%clk 0:02:34.8]} 9... Qc7 {[%clk 0:02:27]}
10. dxc5 {[%clk 0:02:31.2]} 10... Nxe5 {[%clk 0:02:23.5]} 11. Nxe5 {[%clk
0:02:29.3]} 11... Qxe5 {[%clk 0:02:24.4]} 12. c4 {[%clk 0:02:26.3]} 12... Rd8
{[%clk 0:02:15.5]} 13. cxd5 {[%clk 0:02:21.6]} 13... Qxd5 {[%clk 0:02:15.4]} 14.
Qxd5 {[%clk 0:02:17.7]} 14... Rxd5 {[%clk 0:02:15.8]} 15. Bf3 {[%clk 0:02:14.7]}
15... Rd8 {[%clk 0:02:09.3]} 16. Bxb7 {[%clk 0:02:09.9]} 16... Bd3 {[%clk
0:01:59.4]} 17. Rfd1 {[%clk 0:02:01.1]} 17... Bb5 {[%clk 0:01:47.4]} 18. Nc3
{[%clk 0:01:44.5]} 18... Ne7 {[%clk 0:01:18.3]} 19. Nxb5 {[%clk 0:01:29.9]}
19... axb5 {[%clk 0:01:19.2]} 20. c6 {[%clk 0:01:20.5]} 20... Nd5 {[%clk
0:00:58.2]} 21. Rxd5 {[%clk 0:00:52.3]} 21... exd5 {[%clk 0:00:59.1]} 22. Bb6
{[%clk 0:00:47.5]} 22... Bd6 {[%clk 0:00:48]} 23. Re1+ {[%clk 0:00:43.6]} 23...
Be7 {[%clk 0:00:44.8]} 24. Bc5 {[%clk 0:00:41.4]} 24... O-O {[%clk 0:00:40.8]}
25. Bxe7 {[%clk 0:00:25.3]} 25... Rfe8 {[%clk 0:00:40.4]} 26. c7 {[%clk
0:00:25.5]} 26... Ra8 {[%clk 0:00:26.6]} 27. Bxa8 {[%clk 0:00:22.1]} 27... Rxa8
{[%clk 0:00:27.5]} 28. a3 {[%clk 0:00:13.7]} 28... f6 {[%clk 0:00:27.2]} 29. Rc1
{[%clk 0:00:07.1]} 29... Rc8 {[%clk 0:00:25.7]} 30. Bd6 {[%clk 0:00:07.1]} 30...
Kf7 {[%clk 0:00:25.5]} 31. Rc5 {[%clk 0:00:06.1]} 31... Ke6 {[%clk 0:00:25.9]}
32. Bg3 {[%clk 0:00:05.9]} 32... d4 {[%clk 0:00:23.7]} 33. Rxb5 {[%clk
0:00:05.1]} 33... g5 {[%clk 0:00:20.3]} 34. Rb4 {[%clk 0:00:03.3]} 34... Kd5
{[%clk 0:00:19.8]} 35. Rb5+ {[%clk 0:00:02.9]} 35... Kc4 {[%clk 0:00:19.8]} 36.
Rb6 {[%clk 0:00:02.5]} 36... f5 {[%clk 0:00:19.4]} 37. Be5 {[%clk 0:00:01.8]}
37... d3 {[%clk 0:00:19.5]} 0-1

[Event "*** SCC Grand Prix: Titled Tuesday Blitz"]
[Site "Chess.com"]
[Date "2020.07.21"]
[Round "9"]
[White "NormWeinstein"]
[Black "awesomevishesh"]
[Result "1-0"]
[WhiteElo "2468"]
[BlackElo "2346"]
[TimeControl "180+1"]
[EndTime "11:48:31 PDT"]
[Termination "NormWeinstein won on time"]

1. e4 {[%clk 0:02:59.4]} 1... c5 {[%clk 0:02:59.2]} 2. Nf3 {[%clk 0:02:59.4]}
2... d6 {[%clk 0:02:59.5]} 3. Nc3 {[%clk 0:02:59.7]} 3... a6 {[%clk 0:02:55.9]}
4. g3 {[%clk 0:02:58.8]} 4... Nf6 {[%clk 0:02:53.4]} 5. e5 {[%clk 0:02:57.8]}
5... dxe5 {[%clk 0:02:52.7]} 6. Nxe5 {[%clk 0:02:58.3]} 6... Nbd7 {[%clk
0:02:19.4]} 7. d4 {[%clk 0:02:56.3]} 7... cxd4 {[%clk 0:02:17.5]} 8. Qxd4 {[%clk
0:02:55.1]} 8... Nxe5 {[%clk 0:01:58.2]} 9. Qxe5 {[%clk 0:02:54.4]} 9... e6
{[%clk 0:01:37.4]} 10. Bf4 {[%clk 0:02:54]} 10... Be7 {[%clk 0:01:19]} 11. Bg2
{[%clk 0:02:53.6]} 11... O-O {[%clk 0:01:12.4]} 12. O-O {[%clk 0:02:53.9]} 12...
Qb6 {[%clk 0:00:49.8]} 13. Na4 {[%clk 0:02:52.6]} 13... Qb5 {[%clk 0:00:47.3]}
14. Qxb5 {[%clk 0:02:42]} 14... axb5 {[%clk 0:00:47]} 15. Nb6 {[%clk 0:02:38.7]}
15... Ra7 {[%clk 0:00:25.2]} 16. Be3 {[%clk 0:02:28.6]} 16... Ra5 {[%clk
0:00:10]} 17. a3 {[%clk 0:02:17.5]} 17... b4 {[%clk 0:00:08.9]} 18. axb4 {[%clk
0:02:12.7]} 18... Bxb4 {[%clk 0:00:09.8]} 19. Rxa5 {[%clk 0:01:55.8]} 19... Bxa5
{[%clk 0:00:10.7]} 20. Nc4 {[%clk 0:01:56]} 20... Bc7 {[%clk 0:00:09.9]} 21. Bb6
{[%clk 0:01:51.6]} 21... Bxb6 {[%clk 0:00:07.5]} 22. Nxb6 {[%clk 0:01:51.4]}
22... e5 {[%clk 0:00:08]} 23. Re1 {[%clk 0:01:41.9]} 23... Bf5 {[%clk
0:00:06.9]} 24. c3 {[%clk 0:01:41.1]} 24... e4 {[%clk 0:00:06.1]} 25. Nc4 {[%clk
0:01:35.8]} 25... h5 {[%clk 0:00:06]} 26. Ne3 {[%clk 0:01:35.7]} 26... Bg6
{[%clk 0:00:05.9]} 27. Rd1 {[%clk 0:01:36.1]} 27... Ra8 {[%clk 0:00:05.6]} 28.
h3 {[%clk 0:01:33.3]} 28... Ra2 {[%clk 0:00:05.3]} 29. b4 {[%clk 0:01:30.7]}
29... Rb2 {[%clk 0:00:04.2]} 30. Rc1 {[%clk 0:01:28]} 30... h4 {[%clk
0:00:03.4]} 31. g4 {[%clk 0:01:26.8]} 31... Nd7 {[%clk 0:00:03.3]} 32. Nc4
{[%clk 0:01:26.3]} 32... Ra2 {[%clk 0:00:03.4]} 33. Nd6 {[%clk 0:01:25.8]} 33...
Nf6 {[%clk 0:00:02.9]} 34. Nxb7 {[%clk 0:01:25.2]} 34... Nd5 {[%clk 0:00:02.8]}
35. Nc5 {[%clk 0:01:18.3]} 35... Nf4 {[%clk 0:00:02.8]} 36. Bf1 {[%clk
0:01:18.5]} 36... e3 {[%clk 0:00:02.6]} 37. fxe3 {[%clk 0:01:17.8]} 37... Nd5
{[%clk 0:00:02.9]} 38. Bc4 {[%clk 0:01:12.1]} 38... Rd2 {[%clk 0:00:03]} 39. Nb3
{[%clk 0:01:10]} 39... Rg2+ {[%clk 0:00:02.6]} 40. Kxg2 {[%clk 0:01:07.2]} 40...
Nxe3+ {[%clk 0:00:03.3]} 41. Kf2 {[%clk 0:01:05.8]} 41... Nxc4 {[%clk
0:00:04.2]} 42. Na5 {[%clk 0:01:04.7]} 42... Bd3 {[%clk 0:00:03.9]} 43. Nxc4
{[%clk 0:01:04.3]} 43... Bxc4 {[%clk 0:00:04.8]} 44. Rd1 {[%clk 0:01:04.1]}
44... f6 {[%clk 0:00:04.9]} 45. Rd4 {[%clk 0:01:04.3]} 45... Be6 {[%clk
0:00:03.9]} 46. c4 {[%clk 0:01:04]} 46... Kf7 {[%clk 0:00:04.3]} 47. c5 {[%clk
0:01:03.9]} 47... Ke7 {[%clk 0:00:04.7]} 48. c6 {[%clk 0:01:03.6]} 48... f5
{[%clk 0:00:04.9]} 49. b5 {[%clk 0:00:59.7]} 49... fxg4 {[%clk 0:00:05.2]} 50.
hxg4 {[%clk 0:00:59.4]} 50... g5 {[%clk 0:00:05]} 51. b6 {[%clk 0:00:58.5]}
51... h3 {[%clk 0:00:03.6]} 52. Kg3 {[%clk 0:00:58.2]} 52... h2 {[%clk
0:00:03.4]} 53. Kxh2 {[%clk 0:00:58.1]} 1-0

[Event "*** SCC Grand Prix: Titled Tuesday Blitz"]
[Site "Chess.com"]
[Date "2020.07.21"]
[Round "9"]
[White "Kildepiotr"]
[Black "Chesswizard_2007"]
[Result "0-1"]
[WhiteElo "2605"]
[BlackElo "2468"]
[TimeControl "180+1"]
[EndTime "11:48:32 PDT"]
[Termination "Chesswizard_2007 won on time"]

1. Nf3 {[%clk 0:03:00.9]} 1... Nf6 {[%clk 0:02:54.1]} 2. g3 {[%clk 0:03:00.7]}
2... d5 {[%clk 0:02:52.9]} 3. Bg2 {[%clk 0:03:01]} 3... Bf5 {[%clk 0:02:53.5]}
4. O-O {[%clk 0:03:01.5]} 4... h6 {[%clk 0:02:52]} 5. d3 {[%clk 0:03:01.7]} 5...
e6 {[%clk 0:02:52.1]} 6. Nbd2 {[%clk 0:03:02]} 6... Be7 {[%clk 0:02:52.2]} 7.
Qe1 {[%clk 0:03:02.4]} 7... O-O {[%clk 0:02:52.5]} 8. e4 {[%clk 0:03:02.4]} 8...
Bh7 {[%clk 0:02:53.2]} 9. Qe2 {[%clk 0:03:02.6]} 9... c5 {[%clk 0:02:52.7]} 10.
Ne5 {[%clk 0:03:00.5]} 10... Nbd7 {[%clk 0:02:48]} 11. Nxd7 {[%clk 0:02:54.9]}
11... Qxd7 {[%clk 0:02:48.9]} 12. e5 {[%clk 0:02:53.7]} 12... Ne8 {[%clk
0:02:48]} 13. f4 {[%clk 0:02:53.9]} 13... Nc7 {[%clk 0:02:47]} 14. g4 {[%clk
0:02:53.5]} 14... Rfe8 {[%clk 0:02:33.6]} 15. Qf2 {[%clk 0:02:41.7]} 15... c4
{[%clk 0:02:24.2]} 16. f5 {[%clk 0:02:33.5]} 16... Na6 {[%clk 0:02:03.2]} 17. d4
{[%clk 0:02:27.9]} 17... f6 {[%clk 0:01:54]} 18. exf6 {[%clk 0:01:54.4]} 18...
Bxf6 {[%clk 0:01:51.3]} 19. c3 {[%clk 0:01:54.3]} 19... exf5 {[%clk 0:01:41.3]}
20. gxf5 {[%clk 0:01:54.1]} 20... Nc7 {[%clk 0:01:40.3]} 21. Nb1 {[%clk
0:01:37.4]} 21... b5 {[%clk 0:01:36.3]} 22. Na3 {[%clk 0:01:34]} 22... a5 {[%clk
0:01:32.2]} 23. Bf4 {[%clk 0:01:32.3]} 23... Rac8 {[%clk 0:01:30.1]} 24. Bxc7
{[%clk 0:01:28.3]} 24... Rxc7 {[%clk 0:01:31]} 25. Nc2 {[%clk 0:01:26.8]} 25...
Kh8 {[%clk 0:01:28.8]} 26. Ne3 {[%clk 0:01:20.3]} 26... Bg8 {[%clk 0:01:29.2]}
27. Rae1 {[%clk 0:01:18.9]} 27... Rcc8 {[%clk 0:01:20.5]} 28. Ng4 {[%clk
0:01:14]} 28... Qd6 {[%clk 0:01:13.5]} 29. Rxe8 {[%clk 0:01:06.7]} 29... Rxe8
{[%clk 0:01:14.4]} 30. Re1 {[%clk 0:01:07.2]} 30... Rxe1+ {[%clk 0:01:12]} 31.
Qxe1 {[%clk 0:01:08.1]} 31... b4 {[%clk 0:01:12.9]} 32. Qe3 {[%clk 0:00:59.8]}
32... Bg5 {[%clk 0:00:57.6]} 33. Qe5 {[%clk 0:00:43.3]} 33... Qd8 {[%clk
0:00:41.8]} 34. Bf3 {[%clk 0:00:33.5]} 34... b3 {[%clk 0:00:39]} 35. axb3 {[%clk
0:00:31.1]} 35... cxb3 {[%clk 0:00:39.9]} 36. Ne3 {[%clk 0:00:20.2]} 36... a4
{[%clk 0:00:33.1]} 37. Nd1 {[%clk 0:00:11.1]} 37... Bc1 {[%clk 0:00:28.8]} 38.
Kf2 {[%clk 0:00:07]} 38... Qg5 {[%clk 0:00:23.8]} 0-1

[Event "*** SCC Grand Prix: Titled Tuesday Blitz"]
[Site "Chess.com"]
[Date "2020.07.21"]
[Round "9"]
[White "MacDaddyMac"]
[Black "Makswolf200817"]
[Result "0-1"]
[WhiteElo "2367"]
[BlackElo "2485"]
[TimeControl "180+1"]
[EndTime "11:48:32 PDT"]
[Termination "Makswolf200817 won by checkmate"]

1. e4 {[%clk 0:03:00.9]} 1... e6 {[%clk 0:02:58.9]} 2. d4 {[%clk 0:03:00.8]}
2... d5 {[%clk 0:02:58.6]} 3. e5 {[%clk 0:03:01.3]} 3... c5 {[%clk 0:02:58.5]}
4. c3 {[%clk 0:03:01.9]} 4... Qb6 {[%clk 0:02:59]} 5. a3 {[%clk 0:03:01.5]} 5...
Bd7 {[%clk 0:02:57.4]} 6. Nf3 {[%clk 0:02:57.4]} 6... cxd4 {[%clk 0:02:56.3]} 7.
cxd4 {[%clk 0:02:57.1]} 7... Bb5 {[%clk 0:02:56]} 8. Bxb5+ {[%clk 0:02:52.9]}
8... Qxb5 {[%clk 0:02:56.9]} 9. Nc3 {[%clk 0:02:53.5]} 9... Qd7 {[%clk
0:02:56.8]} 10. O-O {[%clk 0:02:51.1]} 10... Ne7 {[%clk 0:02:55.9]} 11. Bg5
{[%clk 0:02:50.9]} 11... Nbc6 {[%clk 0:02:54.7]} 12. Bxe7 {[%clk 0:02:50.6]}
12... Bxe7 {[%clk 0:02:54.2]} 13. Rc1 {[%clk 0:02:47.7]} 13... O-O {[%clk
0:02:52.8]} 14. h3 {[%clk 0:02:48.1]} 14... Rfc8 {[%clk 0:02:50.8]} 15. Nh2
{[%clk 0:02:44.8]} 15... a6 {[%clk 0:02:42]} 16. f4 {[%clk 0:02:44.8]} 16...
Nxd4 {[%clk 0:02:41.4]} 17. Kh1 {[%clk 0:02:40.3]} 17... Nf5 {[%clk 0:02:40.5]}
18. Qd3 {[%clk 0:02:36.2]} 18... Rc6 {[%clk 0:02:25.1]} 19. g4 {[%clk
0:02:31.3]} 19... Nh4 {[%clk 0:02:24.7]} 20. f5 {[%clk 0:02:23.8]} 20... exf5
{[%clk 0:02:21.4]} 21. gxf5 {[%clk 0:02:20.6]} 21... d4 {[%clk 0:02:17]} 22. f6
{[%clk 0:02:14.1]} 22... gxf6 {[%clk 0:01:58.9]} 23. exf6 {[%clk 0:02:08.2]}
23... Bxf6 {[%clk 0:01:58.9]} 24. Ne4 {[%clk 0:02:04.9]} 24... Bg7 {[%clk
0:01:55.2]} 25. Rce1 {[%clk 0:01:51.7]} 25... Re6 {[%clk 0:01:44.9]} 26. Qg3
{[%clk 0:01:29.9]} 26... Ng6 {[%clk 0:01:40.2]} 27. Qg2 {[%clk 0:01:27.4]} 27...
Qc6 {[%clk 0:01:32.3]} 28. Ng4 {[%clk 0:01:25.4]} 28... d3 {[%clk 0:00:54.9]}
29. Rf4 {[%clk 0:01:03.8]} 29... Nxf4 {[%clk 0:00:43.3]} 30. Ngf6+ {[%clk
0:00:52.9]} 30... Rxf6 {[%clk 0:00:37.3]} 31. Nxf6+ {[%clk 0:00:52.9]} 31...
Qxf6 {[%clk 0:00:38.1]} 32. Qxb7 {[%clk 0:00:52.7]} 32... Rf8 {[%clk 0:00:35.9]}
33. Rf1 {[%clk 0:00:50.7]} 33... d2 {[%clk 0:00:33.4]} 34. Qb4 {[%clk
0:00:46.6]} 34... Nd5 {[%clk 0:00:23.2]} 35. Qc4 {[%clk 0:00:40.5]} 35... d1=Q
{[%clk 0:00:18.5]} 36. Rxd1 {[%clk 0:00:37.6]} 36... Qf3+ {[%clk 0:00:18.3]} 37.
Kh2 {[%clk 0:00:38.5]} 37... Qxd1 {[%clk 0:00:18.4]} 38. Qxa6 {[%clk 0:00:39.2]}
38... Be5+ {[%clk 0:00:17.9]} 39. Kg2 {[%clk 0:00:39.4]} 39... Nf4+ {[%clk
0:00:16.9]} 40. Kf2 {[%clk 0:00:39.2]} 40... Bd4+ {[%clk 0:00:15]} 41. Kg3
{[%clk 0:00:39.4]} 41... Nh5+ {[%clk 0:00:14.4]} 42. Kg2 {[%clk 0:00:34.5]}
42... Qd2+ {[%clk 0:00:12.1]} 43. Kf3 {[%clk 0:00:34.2]} 43... Qe3+ {[%clk
0:00:11.3]} 44. Kg4 {[%clk 0:00:30.7]} 44... Nf6+ {[%clk 0:00:11]} 45. Kf5
{[%clk 0:00:24]} 45... Qe5# {[%clk 0:00:10.4]} 0-1

[Event "*** SCC Grand Prix: Titled Tuesday Blitz"]
[Site "Chess.com"]
[Date "2020.07.21"]
[Round "9"]
[White "Omk124"]
[Black "arminmusovic"]
[Result "1/2-1/2"]
[WhiteElo "2356"]
[BlackElo "2513"]
[TimeControl "180+1"]
[EndTime "11:48:32 PDT"]
[Termination "Game drawn by repetition"]

1. e4 {[%clk 0:03:00.9]} 1... c6 {[%clk 0:03:00.2]} 2. c4 {[%clk 0:03:00.9]}
2... d5 {[%clk 0:03:01.1]} 3. exd5 {[%clk 0:03:01.8]} 3... cxd5 {[%clk 0:03:02]}
4. cxd5 {[%clk 0:03:02.7]} 4... a6 {[%clk 0:03:02.8]} 5. Nc3 {[%clk 0:03:03.5]}
5... Nf6 {[%clk 0:03:03]} 6. Nf3 {[%clk 0:03:03.8]} 6... g6 {[%clk 0:03:03.2]}
7. Bc4 {[%clk 0:03:03.8]} 7... Bg7 {[%clk 0:03:03.6]} 8. a4 {[%clk 0:03:03.6]}
8... O-O {[%clk 0:03:04.2]} 9. O-O {[%clk 0:03:03]} 9... Nbd7 {[%clk 0:03:04.8]}
10. Qb3 {[%clk 0:03:03.4]} 10... Ng4 {[%clk 0:03:01.8]} 11. d3 {[%clk
0:03:02.4]} 11... Nge5 {[%clk 0:03:01.1]} 12. Nxe5 {[%clk 0:03:02]} 12... Nxe5
{[%clk 0:03:02]} 13. Be3 {[%clk 0:03:02]} 13... Qc7 {[%clk 0:02:51.4]} 14. Rfe1
{[%clk 0:03:01.2]} 14... Ng4 {[%clk 0:02:50.3]} 15. g3 {[%clk 0:02:56.4]} 15...
Nxe3 {[%clk 0:02:48.7]} 16. Rxe3 {[%clk 0:02:56.7]} 16... Bh6 {[%clk 0:02:35.1]}
17. Re2 {[%clk 0:02:53.9]} 17... Bg4 {[%clk 0:02:32.5]} 18. Re4 {[%clk 0:02:51]}
18... Bf3 {[%clk 0:02:24.1]} 19. Rh4 {[%clk 0:02:44]} 19... Bg5 {[%clk
0:02:15.9]} 20. Rd4 {[%clk 0:02:26.8]} 20... Qd7 {[%clk 0:01:39.3]} 21. g4
{[%clk 0:02:23.5]} 21... e5 {[%clk 0:01:33.2]} 22. Re4 {[%clk 0:02:00.5]} 22...
Bxe4 {[%clk 0:01:29.5]} 23. Nxe4 {[%clk 0:02:01.4]} 23... Qxg4+ {[%clk
0:01:29.1]} 24. Kh1 {[%clk 0:02:01.9]} 24... Qf3+ {[%clk 0:01:21]} 25. Kg1
{[%clk 0:02:01.1]} 25... Bh4 {[%clk 0:01:18.2]} 26. d6 {[%clk 0:01:57.6]} 26...
Kg7 {[%clk 0:01:12.8]} 27. Rf1 {[%clk 0:01:54.7]} 27... Qg4+ {[%clk 0:00:53.1]}
28. Kh1 {[%clk 0:01:53.8]} 28... Rad8 {[%clk 0:00:47.8]} 29. Qxb7 {[%clk
0:01:51.4]} 29... Rd7 {[%clk 0:00:45.5]} 30. Qd5 {[%clk 0:01:34.3]} 30... Qf3+
{[%clk 0:00:39.3]} 31. Kg1 {[%clk 0:01:33.8]} 31... f5 {[%clk 0:00:39.5]} 32.
Qxe5+ {[%clk 0:01:33]} 32... Kh6 {[%clk 0:00:36.2]} 33. Ng3 {[%clk 0:01:26.7]}
33... f4 {[%clk 0:00:28.6]} 34. d4 {[%clk 0:01:09.4]} 34... fxg3 {[%clk
0:00:20.1]} 35. fxg3 {[%clk 0:01:09.3]} 35... Qa8 {[%clk 0:00:09.3]} 36. Rxf8
{[%clk 0:01:06.7]} 36... Qxf8 {[%clk 0:00:08]} 37. gxh4 {[%clk 0:01:07.6]} 37...
Qf3 {[%clk 0:00:07.3]} 38. Be2 {[%clk 0:01:02.6]} 38... Qf5 {[%clk 0:00:05.9]}
39. Qe3+ {[%clk 0:01:01.5]} 39... Kg7 {[%clk 0:00:05.3]} 40. Qe5+ {[%clk
0:01:01]} 40... Kh6 {[%clk 0:00:05.9]} 41. Bxa6 {[%clk 0:00:57]} 41... Qg4+
{[%clk 0:00:02.6]} 42. Qg3 {[%clk 0:00:50.4]} 42... Qd1+ {[%clk 0:00:02.6]} 43.
Bf1 {[%clk 0:00:49.3]} 43... Qxd4+ {[%clk 0:00:02.6]} 44. Kh1 {[%clk 0:00:48.5]}
44... Rxd6 {[%clk 0:00:02.5]} 45. Qg5+ {[%clk 0:00:47.4]} 45... Kg7 {[%clk
0:00:03.4]} 46. Qe7+ {[%clk 0:00:48]} 46... Kh6 {[%clk 0:00:03.7]} 47. Qg5+
{[%clk 0:00:46.8]} 47... Kg7 {[%clk 0:00:04.6]} 48. Qe7+ {[%clk 0:00:47.1]}
48... Kh6 {[%clk 0:00:05.5]} 49. Qg5+ {[%clk 0:00:45.7]} 1/2-1/2